[Event "Titled Tuesday Blitz February 07 Early 2023"]
[White "Mrudul Dehankar"]
[Black "Fiorito, Francisco"]
[WhiteFideId "25096990"]
[BlackFideId "180165"]
[WhiteElo "2030"]
[BlackElo "2305"]
[Result "0-1"]
[Round "09"]
[TimeControl "180+2"]
[Date "2023.02.07"]
[WhiteClock "0:00:02"]
[BlackClock "0:00:24"]

1. e4 {[%clk 0:02:50]}  c5 {[%clk 0:02:59]} 2. Nf3 {[%clk 0:02:49]}  Nc6 {[%clk 0:02:59]} 3. d4 {[%clk 0:02:50]}  cxd4 {[%clk 0:03:00]} 4. Nxd4 {[%clk 0:02:50]}  g6 {[%clk 0:03:00]} 5. Nc3 {[%clk 0:02:49]}  Bg7 {[%clk 0:03:00]} 6. Be3 {[%clk 0:02:50]}  Nf6 {[%clk 0:03:00]} 7. Bc4 {[%clk 0:02:50]}  O-O {[%clk 0:03:01]} 8. Bb3 {[%clk 0:02:51]}  Re8 {[%clk 0:03:01]} 9. O-O {[%clk 0:02:41]}  d6 {[%clk 0:02:59]} 10. h3 {[%clk 0:02:40]}  Na5 {[%clk 0:02:58]} 11. f4 {[%clk 0:02:34]}  Nxb3 {[%clk 0:02:54]} 12. axb3 {[%clk 0:02:25]}  a6 {[%clk 0:02:27]} 13. Nf3 {[%clk 0:02:10]}  Nd7 {[%clk 0:02:22]} 14. Bd4 {[%clk 0:02:09]}  Bh6 {[%clk 0:02:19]} 15. f5 {[%clk 0:02:01]}  Nc5 {[%clk 0:02:00]} 16. fxg6 {[%clk 0:01:25]}  hxg6 {[%clk 0:01:58]} 17. Qe1 {[%clk 0:01:25]}  Ne6 {[%clk 0:01:51]} 18. Qh4 {[%clk 0:01:13]}  Nxd4 {[%clk 0:01:43]} 19. Qxh6 {[%clk 0:01:08]}  Qb6 {[%clk 0:01:40]} 20. Kh1 {[%clk 0:00:56]}  Nxf3 {[%clk 0:01:37]} 21. Rxf3 {[%clk 0:00:55]}  Be6 {[%clk 0:01:31]} 22. Raf1 {[%clk 0:00:50]}  Qd4 {[%clk 0:01:29]} 23. Qg5 {[%clk 0:00:15]}  Rac8 {[%clk 0:01:25]} 24. Nd5 {[%clk 0:00:06]}  Bxd5 {[%clk 0:01:21]} 25. exd5 {[%clk 0:00:04]}  Rf8 {[%clk 0:01:09]} 26. Qxe7 {[%clk 0:00:03]}  Qxd5 {[%clk 0:01:08]} 27. c4 {[%clk 0:00:04]}  Qe6 {[%clk 0:00:33]} 28. Qxb7 {[%clk 0:00:04]}  a5 {[%clk 0:00:30]} 29. Qa6 {[%clk 0:00:04]}  Rc5 {[%clk 0:00:31]} 30. Rf6 {[%clk 0:00:03]}  Qe2 {[%clk 0:00:30]} 31. Qxd6 {[%clk 0:00:03]}  Rg5 {[%clk 0:00:30]} 32. Qh2 {[%clk 0:00:02]}  Qxb2 {[%clk 0:00:30]} 33. R6f2 {[%clk 0:00:03]}  Qxb3 {[%clk 0:00:30]} 34. Qf4 {[%clk 0:00:03]}  Rf5 {[%clk 0:00:29]} 35. Qg4 {[%clk 0:00:03]}  Rxf2 {[%clk 0:00:29]} 36. Rxf2 {[%clk 0:00:03]}  Rd8 {[%clk 0:00:26]} 37. c5 {[%clk 0:00:04]}  Rd1+ {[%clk 0:00:24]} 38. Kh2 {[%clk 0:00:04]}  Qb8+ {[%clk 0:00:24]} 39. Qg3 {[%clk 0:00:04]}  Rh1+ {[%clk 0:00:23]} 40. Kxh1 {[%clk 0:00:04]}  Qxg3 {[%clk 0:00:24]} 41. Rd2 {[%clk 0:00:02]}  Qe1+ {[%clk 0:00:24]} 0-1


[Site "https://www.chess.com"]

[Event "Titled Tuesday Blitz February 07 Early 2023"]
[White "Buscar, Michael"]
[Black "Herman, Daniel"]
[WhiteFideId "2603616"]
[BlackFideId "30935008"]
[WhiteElo "2041"]
[BlackElo "1956"]
[Result "0-1"]
[Round "09"]
[TimeControl "180+2"]
[Date "2023.02.07"]
[WhiteClock "0:01:23"]
[BlackClock "0:00:25"]

1. Nf3 {[%clk 0:02:59]}  d5 {[%clk 0:02:59]} 2. b3 {[%clk 0:02:59]}  Bg4 {[%clk 0:02:58]} 3. Bb2 {[%clk 0:03:00]}  Bxf3 {[%clk 0:02:57]} 4. gxf3 {[%clk 0:03:01]}  e6 {[%clk 0:02:57]} 5. Rg1 {[%clk 0:03:00]}  Nf6 {[%clk 0:02:57]} 6. e3 {[%clk 0:02:55]}  g6 {[%clk 0:02:56]} 7. Nc3 {[%clk 0:02:50]}  Bg7 {[%clk 0:02:56]} 8. Ne2 {[%clk 0:02:50]}  O-O {[%clk 0:02:53]} 9. d3 {[%clk 0:02:46]}  c5 {[%clk 0:02:52]} 10. Qd2 {[%clk 0:02:46]}  Nc6 {[%clk 0:02:52]} 11. Ng3 {[%clk 0:02:41]}  e5 {[%clk 0:02:49]} 12. O-O-O {[%clk 0:02:38]}  Kh8 {[%clk 0:02:36]} 13. h4 {[%clk 0:02:34]}  h5 {[%clk 0:02:32]} 14. f4 {[%clk 0:02:33]}  exf4 {[%clk 0:02:29]} 15. exf4 {[%clk 0:02:34]}  d4 {[%clk 0:02:27]} 16. f5 {[%clk 0:02:33]}  Ng4 {[%clk 0:02:24]} 17. Kb1 {[%clk 0:02:30]}  Re8 {[%clk 0:02:17]} 18. Bh3 {[%clk 0:02:21]}  Bh6 {[%clk 0:02:13]} 19. f4 {[%clk 0:02:21]}  Qxh4 {[%clk 0:02:07]} 20. Bxg4 {[%clk 0:02:16]}  Qxg4 {[%clk 0:02:05]} 21. fxg6 {[%clk 0:02:16]}  fxg6 {[%clk 0:02:04]} 22. Ne4 {[%clk 0:02:13]}  Qf5 {[%clk 0:01:45]} 23. Nd6 {[%clk 0:02:04]}  Bxf4 {[%clk 0:01:43]} 24. Nxf5 {[%clk 0:02:00]}  Bxd2 {[%clk 0:01:43]} 25. Rxg6 {[%clk 0:01:58]}  Re2 {[%clk 0:01:04]} 26. Rh1 {[%clk 0:01:51]}  Re1+ {[%clk 0:00:52]} 27. Rxe1 {[%clk 0:01:50]}  Bxe1 {[%clk 0:00:53]} 28. Rh6+ {[%clk 0:01:50]}  Kg8 {[%clk 0:00:54]} 29. Rxh5 {[%clk 0:01:48]}  Re8 {[%clk 0:00:42]} 30. Bc1 {[%clk 0:01:46]}  Bc3 {[%clk 0:00:35]} 31. Rh1 {[%clk 0:01:43]}  Re2 {[%clk 0:00:27]} 32. Bb2 {[%clk 0:01:24]}  Bxb2 {[%clk 0:00:25]} 33. Kxb2 {[%clk 0:01:24]}  Nb4 {[%clk 0:00:26]} 34. Rc1 {[%clk 0:01:23]}  Nxd3+ {[%clk 0:00:25]} 0-1


[Site "https://www.chess.com"]

[Event "Titled Tuesday Blitz February 07 Early 2023"]
[White "Zacurdajev, Dmitry"]
[Black "Jiganchine, Roman"]
[WhiteFideId "4196309"]
[BlackFideId "2603667"]
[WhiteElo "2273"]
[BlackElo "2205"]
[Result "1-0"]
[Round "09"]
[TimeControl "180+2"]
[Date "2023.02.07"]
[WhiteClock "0:00:03"]
[BlackClock "0:00:01"]

1. d4 {[%clk 0:03:00]}  d5 {[%clk 0:02:51]} 2. c4 {[%clk 0:03:00]}  e6 {[%clk 0:02:46]} 3. Nc3 {[%clk 0:03:01]}  Nf6 {[%clk 0:02:46]} 4. Nf3 {[%clk 0:03:01]}  c5 {[%clk 0:02:46]} 5. cxd5 {[%clk 0:02:58]}  cxd4 {[%clk 0:02:45]} 6. Qxd4 {[%clk 0:02:48]}  exd5 {[%clk 0:02:42]} 7. Bg5 {[%clk 0:02:38]}  Be7 {[%clk 0:02:38]} 8. e3 {[%clk 0:02:33]}  O-O {[%clk 0:02:36]} 9. Be2 {[%clk 0:02:32]}  Nc6 {[%clk 0:02:31]} 10. Qa4 {[%clk 0:02:24]}  h6 {[%clk 0:02:29]} 11. Bh4 {[%clk 0:02:18]}  Be6 {[%clk 0:02:29]} 12. O-O {[%clk 0:02:17]}  Qb6 {[%clk 0:02:27]} 13. Qb3 {[%clk 0:02:06]}  Rfd8 {[%clk 0:02:17]} 14. Qxb6 {[%clk 0:02:02]}  axb6 {[%clk 0:02:16]} 15. Nb5 {[%clk 0:01:59]}  Rac8 {[%clk 0:02:08]} 16. Nfd4 {[%clk 0:01:51]}  g5 {[%clk 0:02:02]} 17. Bg3 {[%clk 0:01:48]}  Ne4 {[%clk 0:02:00]} 18. Rfd1 {[%clk 0:01:40]}  Nxg3 {[%clk 0:01:49]} 19. hxg3 {[%clk 0:01:41]}  Bf6 {[%clk 0:01:47]} 20. Rac1 {[%clk 0:01:17]}  Kg7 {[%clk 0:00:58]} 21. a3 {[%clk 0:01:13]}  Ne5 {[%clk 0:00:53]} 22. Rxc8 {[%clk 0:00:57]}  Rxc8 {[%clk 0:00:52]} 23. Nd6 {[%clk 0:00:55]}  Rb8 {[%clk 0:00:37]} 24. Rc1 {[%clk 0:00:42]}  Nc6 {[%clk 0:00:20]} 25. N4f5+ {[%clk 0:00:09]}  Kg6 {[%clk 0:00:14]} 26. Bd3 {[%clk 0:00:09]}  Ne5 {[%clk 0:00:09]} 27. Bb1 {[%clk 0:00:06]}  g4 {[%clk 0:00:07]} 28. Ne7+ {[%clk 0:00:02]}  Kg7 {[%clk 0:00:06]} 29. Nef5+ {[%clk 0:00:01]}  Kf8 {[%clk 0:00:05]} 30. Rc7 {[%clk 0:00:02]}  Nc4 {[%clk 0:00:03]} 31. Nxc4 {[%clk 0:00:02]}  dxc4 {[%clk 0:00:03]} 32. Nxh6 {[%clk 0:00:02]}  Bxb2 {[%clk 0:00:03]} 33. Nf5 {[%clk 0:00:02]}  Bxa3 {[%clk 0:00:01]} 34. Nd4 {[%clk 0:00:03]} 1-0


[Site "https://www.chess.com"]

[Event "Titled Tuesday Blitz February 07 Early 2023"]
[White "Jenkins, Drake"]
[Black "Gatterer, Florian"]
[WhiteFideId "2022397"]
[BlackFideId "811688"]
[WhiteElo "2130"]
[BlackElo "2170"]
[Result "1/2-1/2"]
[Round "09"]
[TimeControl "180+2"]
[Date "2023.02.07"]
[WhiteClock "0:02:13"]
[BlackClock "0:01:53"]

1. Nf3 {[%clk 0:02:56]}  g6 {[%clk 0:02:56]} 2. c4 {[%clk 0:02:56]}  c5 {[%clk 0:02:54]} 3. g3 {[%clk 0:02:57]}  Bg7 {[%clk 0:02:54]} 4. Nc3 {[%clk 0:02:57]}  Nc6 {[%clk 0:02:54]} 5. Bg2 {[%clk 0:02:57]}  Nf6 {[%clk 0:02:54]} 6. d4 {[%clk 0:02:57]}  cxd4 {[%clk 0:02:47]} 7. Nxd4 {[%clk 0:02:58]}  O-O {[%clk 0:02:47]} 8. Nc2 {[%clk 0:02:58]}  d6 {[%clk 0:02:42]} 9. O-O {[%clk 0:02:58]}  Qd7 {[%clk 0:02:42]} 10. b3 {[%clk 0:02:56]}  a6 {[%clk 0:02:34]} 11. Bb2 {[%clk 0:02:56]}  Qd8 {[%clk 0:02:30]} 12. Qd2 {[%clk 0:02:54]}  Be6 {[%clk 0:02:28]} 13. Ne3 {[%clk 0:02:53]}  h5 {[%clk 0:02:26]} 14. Ncd5 {[%clk 0:02:43]}  Bxd5 {[%clk 0:02:15]} 15. Nxd5 {[%clk 0:02:41]}  Nxd5 {[%clk 0:02:13]} 16. Bxd5 {[%clk 0:02:33]}  Bxb2 {[%clk 0:02:10]} 17. Qxb2 {[%clk 0:02:33]}  Rc8 {[%clk 0:02:05]} 18. Rfd1 {[%clk 0:02:24]}  Qc7 {[%clk 0:02:05]} 19. Qd2 {[%clk 0:02:21]}  Kg7 {[%clk 0:01:53]} 20. Rac1 {[%clk 0:02:13]} 1/2-1/2


[Site "https://www.chess.com"]

[Event "Titled Tuesday Blitz February 07 Early 2023"]
[White "Shubenkova, Veronika"]
[Black "Vifleemskaia, Svetlana"]
[WhiteFideId "44124040"]
[BlackFideId "4129490"]
[WhiteElo "1960"]
[BlackElo "1971"]
[Result "0-1"]
[Round "09"]
[TimeControl "180+2"]
[Date "2023.02.07"]
[WhiteClock "0:00:56"]
[BlackClock "0:00:46"]

1. e4 {[%clk 0:03:00]}  e5 {[%clk 0:02:58]} 2. Nf3 {[%clk 0:03:00]}  Nc6 {[%clk 0:02:58]} 3. Bb5 {[%clk 0:03:00]}  a6 {[%clk 0:02:57]} 4. Bxc6 {[%clk 0:03:00]}  dxc6 {[%clk 0:02:57]} 5. O-O {[%clk 0:03:01]}  f6 {[%clk 0:02:55]} 6. d4 {[%clk 0:03:01]}  exd4 {[%clk 0:02:54]} 7. e5 {[%clk 0:03:01]}  Bg4 {[%clk 0:02:51]} 8. exf6 {[%clk 0:03:00]}  Qxf6 {[%clk 0:02:47]} 9. Re1+ {[%clk 0:02:56]}  Be7 {[%clk 0:02:45]} 10. Qxd4 {[%clk 0:02:51]}  Bxf3 {[%clk 0:02:34]} 11. Qxf6 {[%clk 0:02:50]}  Nxf6 {[%clk 0:02:33]} 12. gxf3 {[%clk 0:02:50]}  Kf7 {[%clk 0:02:31]} 13. Nc3 {[%clk 0:02:49]}  Bb4 {[%clk 0:02:25]} 14. Bd2 {[%clk 0:02:45]}  Rad8 {[%clk 0:02:24]} 15. Re2 {[%clk 0:02:45]}  Rhe8 {[%clk 0:02:23]} 16. Rae1 {[%clk 0:02:45]}  Rxd2 {[%clk 0:02:13]} 17. Rxe8 {[%clk 0:02:25]}  Nxe8 {[%clk 0:02:12]} 18. Ne4 {[%clk 0:02:20]}  Rxc2 {[%clk 0:02:01]} 19. Ng5+ {[%clk 0:02:20]}  Kg6 {[%clk 0:02:01]} 20. Rxe8 {[%clk 0:02:19]}  Kxg5 {[%clk 0:02:00]} 21. a3 {[%clk 0:02:19]}  Bc5 {[%clk 0:01:57]} 22. b4 {[%clk 0:02:13]}  Bxf2+ {[%clk 0:01:55]} 23. Kh1 {[%clk 0:02:13]}  Kf6 {[%clk 0:01:45]} 24. Rf8+ {[%clk 0:02:10]}  Kg6 {[%clk 0:01:41]} 25. Rb8 {[%clk 0:02:08]}  b5 {[%clk 0:01:35]} 26. Ra8 {[%clk 0:02:07]}  Bb6 {[%clk 0:01:31]} 27. Rxa6 {[%clk 0:02:06]}  Kf5 {[%clk 0:01:30]} 28. Ra8 {[%clk 0:02:05]}  Rc3 {[%clk 0:01:28]} 29. Kg2 {[%clk 0:02:02]}  Rc2+ {[%clk 0:01:28]} 30. Kg3 {[%clk 0:02:00]}  Bd4 {[%clk 0:01:23]} 31. Rf8+ {[%clk 0:01:58]}  Bf6 {[%clk 0:01:20]} 32. h4 {[%clk 0:01:54]}  h5 {[%clk 0:01:20]} 33. Ra8 {[%clk 0:01:51]}  Rc3 {[%clk 0:01:19]} 34. a4 {[%clk 0:01:49]}  bxa4 {[%clk 0:01:18]} 35. Rxa4 {[%clk 0:01:49]}  Rc4 {[%clk 0:01:18]} 36. Ra5+ {[%clk 0:01:48]}  Kg6 {[%clk 0:01:17]} 37. Ra6 {[%clk 0:01:45]}  Bxh4+ {[%clk 0:01:14]} 38. Kh3 {[%clk 0:01:44]}  Bf6 {[%clk 0:01:14]} 39. Kg3 {[%clk 0:01:37]}  h4+ {[%clk 0:01:09]} 40. Kh3 {[%clk 0:01:37]}  Kf7 {[%clk 0:01:09]} 41. Ra7 {[%clk 0:01:28]}  Be5 {[%clk 0:01:04]} 42. Ra6 {[%clk 0:01:25]}  Ke7 {[%clk 0:01:02]} 43. Ra5 {[%clk 0:01:20]}  Kd6 {[%clk 0:01:00]} 44. b5 {[%clk 0:01:16]}  cxb5 {[%clk 0:00:58]} 45. Rxb5 {[%clk 0:01:15]}  Bf6 {[%clk 0:00:57]} 46. Rb8 {[%clk 0:01:13]}  Rf4 {[%clk 0:00:55]} 47. Kg2 {[%clk 0:01:06]}  c5 {[%clk 0:00:55]} 48. Rc8 {[%clk 0:01:06]}  Kd5 {[%clk 0:00:54]} 49. Rc7 {[%clk 0:01:03]}  c4 {[%clk 0:00:54]} 50. Rd7+ {[%clk 0:01:03]}  Kc5 {[%clk 0:00:54]} 51. Rc7+ {[%clk 0:01:02]}  Kb4 {[%clk 0:00:54]} 52. Rb7+ {[%clk 0:01:02]}  Kc3 {[%clk 0:00:53]} 53. Kf2 {[%clk 0:01:02]}  Bd4+ {[%clk 0:00:51]} 54. Ke2 {[%clk 0:01:02]}  h3 {[%clk 0:00:49]} 55. Rb1 {[%clk 0:00:58]}  h2 {[%clk 0:00:48]} 56. Rc1+ {[%clk 0:00:58]}  Kb3 {[%clk 0:00:47]} 57. Rh1 {[%clk 0:00:56]}  Bg1 {[%clk 0:00:46]} 0-1


[Site "https://www.chess.com"]

[Event "Titled Tuesday Blitz February 07 Early 2023"]
[White "Koridze, Lile"]
[Black "Ansh M Shah"]
[WhiteFideId "13612514"]
[BlackFideId "25033379"]
[WhiteElo "2191"]
[BlackElo "2171"]
[Result "0-1"]
[Round "09"]
[TimeControl "180+2"]
[Date "2023.02.07"]
[WhiteClock "0:00:20"]
[BlackClock "0:00:04"]

1. d4 {[%clk 0:03:00]}  Nf6 {[%clk 0:02:58]} 2. c4 {[%clk 0:03:01]}  e6 {[%clk 0:02:59]} 3. Nf3 {[%clk 0:03:00]}  d5 {[%clk 0:03:00]} 4. g3 {[%clk 0:03:01]}  Be7 {[%clk 0:02:54]} 5. Bg2 {[%clk 0:03:01]}  O-O {[%clk 0:02:55]} 6. O-O {[%clk 0:02:51]}  dxc4 {[%clk 0:02:54]} 7. Qc2 {[%clk 0:02:49]}  a6 {[%clk 0:02:53]} 8. a4 {[%clk 0:02:47]}  Bd7 {[%clk 0:02:44]} 9. Bg5 {[%clk 0:02:47]}  Bc6 {[%clk 0:02:39]} 10. a5 {[%clk 0:02:05]}  Nbd7 {[%clk 0:02:32]} 11. Qxc4 {[%clk 0:02:04]}  Bd5 {[%clk 0:02:30]} 12. Qc2 {[%clk 0:02:04]}  c5 {[%clk 0:02:25]} 13. dxc5 {[%clk 0:02:02]}  Nxc5 {[%clk 0:02:26]} 14. Nc3 {[%clk 0:02:02]}  Bb3 {[%clk 0:02:24]} 15. Qc1 {[%clk 0:02:01]}  Rc8 {[%clk 0:02:21]} 16. Rd1 {[%clk 0:01:59]}  Qe8 {[%clk 0:02:16]} 17. Nd4 {[%clk 0:01:44]}  Bxd1 {[%clk 0:02:15]} 18. Qxd1 {[%clk 0:01:40]}  h6 {[%clk 0:02:10]} 19. Be3 {[%clk 0:01:32]}  Qd7 {[%clk 0:01:42]} 20. b4 {[%clk 0:01:28]}  e5 {[%clk 0:01:18]} 21. bxc5 {[%clk 0:01:16]}  exd4 {[%clk 0:01:18]} 22. Bxd4 {[%clk 0:01:17]}  Rfd8 {[%clk 0:01:07]} 23. e3 {[%clk 0:01:12]}  Bxc5 {[%clk 0:00:47]} 24. Bxf6 {[%clk 0:00:51]}  Qxd1+ {[%clk 0:00:43]} 25. Rxd1 {[%clk 0:00:51]}  Rxd1+ {[%clk 0:00:43]} 26. Nxd1 {[%clk 0:00:52]}  gxf6 {[%clk 0:00:43]} 27. Bxb7 {[%clk 0:00:52]}  Rd8 {[%clk 0:00:43]} 28. Nc3 {[%clk 0:00:52]}  Bb4 {[%clk 0:00:31]} 29. Ne4 {[%clk 0:00:50]}  f5 {[%clk 0:00:29]} 30. Nf6+ {[%clk 0:00:50]}  Kh8 {[%clk 0:00:18]} 31. Nd5 {[%clk 0:00:43]}  Bxa5 {[%clk 0:00:17]} 32. Nf4 {[%clk 0:00:42]}  Rd6 {[%clk 0:00:16]} 33. Kf1 {[%clk 0:00:42]}  Bc3 {[%clk 0:00:15]} 34. Ke2 {[%clk 0:00:41]}  a5 {[%clk 0:00:15]} 35. Nd5 {[%clk 0:00:41]}  Be5 {[%clk 0:00:14]} 36. f4 {[%clk 0:00:39]}  Bb2 {[%clk 0:00:14]} 37. Ba8 {[%clk 0:00:36]}  a4 {[%clk 0:00:13]} 38. Nb4 {[%clk 0:00:35]}  a3 {[%clk 0:00:13]} 39. Bd5 {[%clk 0:00:30]}  Rb6 {[%clk 0:00:12]} 40. Na2 {[%clk 0:00:30]}  Kg7 {[%clk 0:00:12]} 41. Kd3 {[%clk 0:00:29]}  Bf6 {[%clk 0:00:12]} 42. h3 {[%clk 0:00:28]}  Rb2 {[%clk 0:00:12]} 43. e4 {[%clk 0:00:28]}  fxe4+ {[%clk 0:00:12]} 44. Kxe4 {[%clk 0:00:28]}  Rh2 {[%clk 0:00:11]} 45. h4 {[%clk 0:00:26]}  Re2+ {[%clk 0:00:11]} 46. Kf3 {[%clk 0:00:26]}  Rb2 {[%clk 0:00:10]} 47. Ke4 {[%clk 0:00:26]}  Be7 {[%clk 0:00:08]} 48. h5 {[%clk 0:00:24]}  Kf6 {[%clk 0:00:08]} 49. g4 {[%clk 0:00:24]}  Bb4 {[%clk 0:00:08]} 50. Kf3 {[%clk 0:00:23]}  Ke7 {[%clk 0:00:05]} 51. Ke4 {[%clk 0:00:22]}  f6 {[%clk 0:00:05]} 52. Kf5 {[%clk 0:00:22]}  Rd2 {[%clk 0:00:05]} 53. Bb3 {[%clk 0:00:21]}  Rd3 {[%clk 0:00:04]} 54. Bc4 {[%clk 0:00:21]}  Rd4 {[%clk 0:00:04]} 55. Bb3 {[%clk 0:00:21]}  Bd2 {[%clk 0:00:05]} 56. Kg6 {[%clk 0:00:19]}  Bxf4 {[%clk 0:00:05]} 57. Bg8 {[%clk 0:00:19]}  Bg5 {[%clk 0:00:05]} 58. Kf5 {[%clk 0:00:17]}  Rf4+ {[%clk 0:00:05]} 59. Kg6 {[%clk 0:00:17]}  Rxg4 {[%clk 0:00:05]} 60. Kh7 {[%clk 0:00:18]}  Rg2 {[%clk 0:00:06]} 61. Bb3 {[%clk 0:00:17]}  f5 {[%clk 0:00:06]} 62. Bd5 {[%clk 0:00:18]}  Rd2 {[%clk 0:00:06]} 63. Nb4 {[%clk 0:00:17]}  f4 {[%clk 0:00:05]} 64. Bb3 {[%clk 0:00:17]}  Rb2 {[%clk 0:00:04]} 65. Nd5+ {[%clk 0:00:17]}  Kd6 {[%clk 0:00:04]} 66. Bc4 {[%clk 0:00:17]}  a2 {[%clk 0:00:04]} 67. Bxa2 {[%clk 0:00:17]}  Rxa2 {[%clk 0:00:05]} 68. Nf6 {[%clk 0:00:17]}  Ra7+ {[%clk 0:00:05]} 69. Kg8 {[%clk 0:00:17]}  Bxf6 {[%clk 0:00:06]} 70. Kf8 {[%clk 0:00:17]}  Be7+ {[%clk 0:00:06]} 71. Ke8 {[%clk 0:00:17]}  Bg5 {[%clk 0:00:06]} 72. Kf8 {[%clk 0:00:17]}  Ke6 {[%clk 0:00:06]} 73. Kg8 {[%clk 0:00:18]}  Kf6 {[%clk 0:00:06]} 74. Kh8 {[%clk 0:00:18]}  Re7 {[%clk 0:00:04]} 75. Kg8 {[%clk 0:00:18]}  f3 {[%clk 0:00:04]} 76. Kh8 {[%clk 0:00:19]}  f2 {[%clk 0:00:05]} 77. Kg8 {[%clk 0:00:19]}  f1=Q {[%clk 0:00:05]} 78. Kh8 {[%clk 0:00:20]}  Qf5 {[%clk 0:00:03]} 79. Kg8 {[%clk 0:00:20]}  Qh7+ {[%clk 0:00:03]} 80. Kf8 {[%clk 0:00:20]}  Qg7# {[%clk 0:00:04]} 0-1


[Site "https://www.chess.com"]

[Event "Titled Tuesday Blitz February 07 Early 2023"]
[White "Wilson, Elvin"]
[Black "Maung, Maung Kyaw Zaw Hein"]
[WhiteFideId "2014874"]
[BlackFideId "13001698"]
[WhiteElo "2183"]
[BlackElo "2119"]
[Result "1-0"]
[Round "09"]
[TimeControl "180+2"]
[Date "2023.02.07"]
[WhiteClock "0:01:25"]
[BlackClock "0:01:42"]

1. c4 {[%clk 0:03:00]}  c6 {[%clk 0:03:00]} 2. g3 {[%clk 0:02:59]}  d5 {[%clk 0:03:00]} 3. Nf3 {[%clk 0:02:59]}  Nf6 {[%clk 0:03:00]} 4. Bg2 {[%clk 0:02:59]}  Bf5 {[%clk 0:03:01]} 5. d4 {[%clk 0:02:58]}  e6 {[%clk 0:03:01]} 6. Nc3 {[%clk 0:02:59]}  Nbd7 {[%clk 0:03:01]} 7. Qb3 {[%clk 0:02:59]}  Qb6 {[%clk 0:03:00]} 8. c5 {[%clk 0:03:00]}  Qc7 {[%clk 0:03:00]} 9. Bf4 {[%clk 0:02:59]}  Qc8 {[%clk 0:03:00]} 10. h3 {[%clk 0:02:59]}  h6 {[%clk 0:02:59]} 11. g4 {[%clk 0:02:59]}  Bh7 {[%clk 0:02:59]} 12. O-O {[%clk 0:02:53]}  Be7 {[%clk 0:02:59]} 13. Qd1 {[%clk 0:02:41]}  a5 {[%clk 0:02:58]} 14. a3 {[%clk 0:02:37]}  b5 {[%clk 0:02:50]} 15. cxb6 {[%clk 0:02:19]}  Nxb6 {[%clk 0:02:49]} 16. Ne5 {[%clk 0:02:18]}  O-O {[%clk 0:02:47]} 17. Rc1 {[%clk 0:02:18]}  Qb7 {[%clk 0:02:39]} 18. Nxc6 {[%clk 0:02:09]}  Qxc6 {[%clk 0:02:37]} 19. Nxd5 {[%clk 0:02:09]}  Qxd5 {[%clk 0:02:28]} 20. Bxd5 {[%clk 0:02:07]}  Nbxd5 {[%clk 0:02:28]} 21. Be5 {[%clk 0:02:00]}  Rfc8 {[%clk 0:02:25]} 22. Rxc8+ {[%clk 0:01:47]}  Rxc8 {[%clk 0:02:25]} 23. Qa4 {[%clk 0:01:48]}  Bd8 {[%clk 0:02:20]} 24. f3 {[%clk 0:01:41]}  Rc2 {[%clk 0:02:08]} 25. e4 {[%clk 0:01:27]}  Nb6 {[%clk 0:01:42]} 26. Qxc2 {[%clk 0:01:25]} 1-0


[Site "https://www.chess.com"]

[Event "Titled Tuesday Blitz February 07 Early 2023"]
[White "Jovic, Stanoje"]
[Black "Bruned, Boris"]
[WhiteFideId "905020"]
[BlackFideId "621790"]
[WhiteElo "2075"]
[BlackElo "2133"]
[Result "1-0"]
[Round "09"]
[TimeControl "180+2"]
[Date "2023.02.07"]
[WhiteClock "0:01:04"]
[BlackClock "0:00:02"]

1. c4 {[%clk 0:03:00]}  b6 {[%clk 0:02:59]} 2. g3 {[%clk 0:03:00]}  Bb7 {[%clk 0:02:59]} 3. Nf3 {[%clk 0:03:00]}  Bxf3 {[%clk 0:03:00]} 4. exf3 {[%clk 0:03:00]}  c5 {[%clk 0:03:00]} 5. d4 {[%clk 0:03:00]}  cxd4 {[%clk 0:03:00]} 6. Qxd4 {[%clk 0:03:00]}  Nc6 {[%clk 0:03:01]} 7. Qd2 {[%clk 0:03:00]}  g6 {[%clk 0:02:56]} 8. Bg2 {[%clk 0:02:59]}  Bg7 {[%clk 0:02:56]} 9. O-O {[%clk 0:02:59]}  Nf6 {[%clk 0:02:46]} 10. Nc3 {[%clk 0:02:54]}  O-O {[%clk 0:02:44]} 11. b3 {[%clk 0:02:52]}  d5 {[%clk 0:02:36]} 12. cxd5 {[%clk 0:02:42]}  Nxd5 {[%clk 0:02:36]} 13. Nxd5 {[%clk 0:02:26]}  Bxa1 {[%clk 0:02:34]} 14. Ba3 {[%clk 0:02:24]}  Bg7 {[%clk 0:02:27]} 15. Rc1 {[%clk 0:02:18]}  Rc8 {[%clk 0:02:16]} 16. Rxc6 {[%clk 0:02:13]}  Rxc6 {[%clk 0:02:12]} 17. Nxe7+ {[%clk 0:02:11]}  Kh8 {[%clk 0:02:10]} 18. Qxd8 {[%clk 0:02:10]}  Rxd8 {[%clk 0:01:40]} 19. Nxc6 {[%clk 0:02:09]}  Rd2 {[%clk 0:01:41]} 20. Nxa7 {[%clk 0:01:52]}  Rc2 {[%clk 0:01:38]} 21. Nb5 {[%clk 0:01:43]}  Rxa2 {[%clk 0:01:36]} 22. Bf1 {[%clk 0:01:42]}  Ra1 {[%clk 0:01:20]} 23. Kg2 {[%clk 0:01:41]}  h5 {[%clk 0:01:12]} 24. Bc4 {[%clk 0:01:39]}  Kg8 {[%clk 0:01:10]} 25. Be7 {[%clk 0:01:30]}  Ra2 {[%clk 0:01:00]} 26. Bd8 {[%clk 0:01:27]}  Bf8 {[%clk 0:00:07]} 27. Bxb6 {[%clk 0:01:24]}  Rd2 {[%clk 0:00:07]} 28. Be3 {[%clk 0:01:19]}  Ra2 {[%clk 0:00:06]} 29. Nc7 {[%clk 0:01:11]}  Rc2 {[%clk 0:00:03]} 30. Nd5 {[%clk 0:01:08]}  Rb2 {[%clk 0:00:02]} 31. Nf6+ {[%clk 0:01:04]} 1-0


[Site "https://www.chess.com"]